Cogmind - Beta 11.1 @@@ ROGUE MODE // 2022.04.22 @ 20:32:15 Player: Plexion Result: Destroyed by 8R-AWN with 8R-AWN's Boregun Performance ------------- Evolutions (0) 0 Regions Visited (3) 600 Robots Destroyed (15) 75 Value Destroyed (362) 362 Prototype IDs (23) 460 Alien Tech Used (0) 0 Bonus (300) 300 TOTAL SCORE: 1797 Bonus ------- Aligned with FarCom 300 Cogmind --------- Core Integrity 0/250 Matter 182/300 Energy 100/100 System Corruption 0% Temperature Cool (0) Movement Treading (160) Location -10/Exiles Parts ------- > --- POWER (1) -------- (None) > --- PROPULSION (2) --- Light Treads > --- UTILITY (2) ------ Hardened Light Armor Plating Hardened Light Armor Plating > --- WEAPON (2) ------- (None) > --- INVENTORY (5) ---- Medium Storage Unit Grenade Launcher Peak State ------------ > --- POWER ------------ Light Ion Engine > --- PROPULSION ------- Light Treads Light Treads > --- UTILITY ---------- Medium Storage Unit Hardened Light Armor Plating > --- WEAPON ----------- Heavy Assault Rifle Heavy Assault Rifle > --- INVENTORY -------- Light Treads Light Treads Hardened Light Armor Plating Hardened Light Armor Plating Hardened Light Armor Plating Heavy Assault Rifle Grenade Launcher Field Lobotomy Kit [Rating: 12] Favorites ----------- Power Light Ion Engine Engine Light Ion Engine Propulsion Light Treads Treads Light Treads Wheel Compact Wheel Utility Hardened Light Armor Plating Storage Medium Storage Unit Protection Hardened Light Armor Plating Weapon Heavy Assault Rifle Ballistic Gun Heavy Assault Rifle Launcher Grenade Launcher Build | -11 -10 -10 -10 ------- Run | Scr Mat Min Exi Slots Evolved . | . . . . Power . | . . . . Propulsion . | . . . . Utility . | . . . . Weapon . | . . . . Parts Attached 26 | 6 10 2 8 Power 2 | 1 . 1 . Engine 2 | 1 . 1 . Core . | . . . . Reactor . | . . . . Propulsion 10 | 2 6 . 2 Treads 6 | . 4 . 2 Leg . | . . . . Wheel 4 | 2 2 . . Hover . | . . . . Flight . | . . . . Utility 6 | 1 2 . 3 Device . | . . . . Storage 2 | 1 1 . . Processor . | . . . . Hackware . | . . . . Protection 4 | . 1 . 3 Artifact . | . . . . Weapon 8 | 2 2 1 3 Energy Gun . | . . . . Energy Cannon . | . . . . Ballistic Gun 7 | 2 2 1 2 Ballistic Cannon . | . . . . Launcher 1 | . . . 1 Special Weapon . | . . . . Impact Weapon . | . . . . Slashing Weapon . | . . . . Piercing Weapon . | . . . . Special Melee Weapon . | . . . . Unidentified Prototypes . | . . . . Parts Lost 11 | . . 2 9 Power 2 | . . 1 1 Propulsion 3 | . . . 3 Utility 2 | . . . 2 Weapon 4 | . . 1 3 Highest Loss Streak 8 | . . 2 8 To Critical Strikes 4 | . . . 4 Average Slot Usage (%) 98 | . 99 97 97 Engine 13 | . 14 11 13 Treads 26 | . 23 28 27 Wheel 1 | . 4 . . Storage 13 | . 14 14 13 Protection 14 | . 13 14 14 Ballistic Gun 26 | . 28 28 25 Naked Turns . | . . . . Heaviest Build 26 | 13 26 26 24 Greatest Support 40 | 26 40 40 40 Greatest Overweight (x) . | . . . . Average Overweight (x) . | . . . . Largest Inventory Capacity 10 | 8 10 10 10 Average Capacity 9 | 6 8 10 9 Most Carried 10 | 4 8 8 10 Average Carried 7 | 1 7 7 7 Final Capacity 10 | 8 10 10 5 Final Carried 8 | 4 8 7 2 Class Distribution -------------------- 100% | Mutant Dominant Class ---------------- Mutant | -10/Materials Mutant | -10/Mines Mutant | -10/Exiles Resources | -11 -10 -10 -10 ----------- Run | Scr Mat Min Exi Matter Collected 589 | 196 265 128 . Remotely . | . . . . Salvage Created 550 | . 385 165 . Parts 33 | . 27 6 . Haulers Intercepted 2 | . 2 . . Recyclers Shooed 1 | . . 1 . Parts Field Recycled . | . . . . Retrieved Matter . | . . . . Parts Self-Destructed . | . . . . Prevented . | . . . . Kills | -11 -10 -10 -10 ------- Run | Scr Mat Min Exi Combat Hostiles Destroyed 11 | . 7 4 . Guns 11 | . 7 4 . Classes Destroyed 8 | . 5 3 . Tunneler 1 | . . 1 . Hauler 2 | . 2 . . Recycler 1 | . 1 . . Watcher 1 | . 1 . . Swarmer 3 | . 3 . . Grunt 5 | . 4 1 . Demolisher 2 | . . 2 . Assembled 1 | . . 1 . Best Kill Streak 6 | . 6 2 . Combat Bots Only 4 | . 4 2 . Max Kills in Single Turn 1 | . 1 1 . Gunslinging . | . . . . Exploded . | . . . . Melee . | . . . . Uniques/NPCs Destroyed . | . . . . Combat | -11 -10 -10 -10 -------- Run | Scr Mat Min Exi Damage Taken 1896 | . 152 530 1214 Core 253 | . 21 14 218 Absorbed by Shields . | . . . . Core Remaining (%) 100 | 100 . . . Volleys Fired 77 | . 22 18 37 Largest 2 | . 2 2 2 Hottest 46 | . 46 46 46 Shots Fired 129 | . 44 36 49 Gun 129 | . 44 36 49 Cannon . | . . . . Launcher . | . . . . Special . | . . . . Kinetic 129 | . 44 36 49 Thermal . | . . . . Explosive . | . . . . Electromagnetic . | . . . . Robot Hit Streak 15 | . 12 9 15 Robot Miss Streak 3 | . 3 3 2 Penetration Max . | . . . . Secondary Targets 1 | . . 1 . Max Gunslinging Chain 1 | . . 1 . Shots Hit Robots 84 | . 23 21 40 Core Hits 27 | . 13 10 4 Critical Kills . | . . . . Critical Parts Destroyed . | . . . . Critical Strikes . | . . . . Melee Attacks . | . . . . Impact . | . . . . Slashing . | . . . . Piercing . | . . . . Sneak Attacks . | . . . . Combat Hostiles . | . . . . Follow-up Attacks . | . . . . Damage Inflicted 1322 | . 346 332 644 Guns 1284 | . 346 332 606 Cannons . | . . . . Explosions . | . . . . Melee . | . . . . Ramming 38 | . . . 38 Kinetic 1284 | . 346 332 606 Thermal . | . . . . Explosive . | . . . . Electromagnetic . | . . . . Impact . | . . . . Slashing . | . . . . Piercing . | . . . . Highest Corruption . | . . . . Average Corruption . | . . . . Corruption Purged . | . . . . Corruption Blocked . | . . . . Overload Shots . | . . . . Overflow Damage . | . . . . Projectiles . | . . . . Explosions . | . . . . Melee . | . . . . Knockbacks 2 | . . . 2 Impact 2 | . . . 2 Kinetic . | . . . . Secondary . | . . . . Self-Inflicted Damage . | . . . . Shots . | . . . . Rammed 26 | . . . 26 Targets Rammed 26 | . . . 26 Kicked . | . . . . Crushed . | . . . . Highest Temperature 54 | . 30 54 28 Average Temperature 18 | . 19 37 13 Received Heat Transfer 108 | . 54 54 . Siege Activations . | . . . . Robots Corrupted . | . . . . Combat Hostiles . | . . . . Parts Fried . | . . . . Impact Corruptions . | . . . . Robots Melted . | . . . . Combat Hostiles . | . . . . Parts Melted . | . . . . Heat Transferred . | . . . . Parts Sabotaged . | . . . . Parts Stolen . | . . . . Parts Stripped . | . . . . Power Chain Reactions . | . . . . Missiles Intercepted . | . . . . Alert | -11 -10 -10 -10 ------- Run | Scr Mat Min Exi Peak Influence 227 | . 227 78 . Initial 13 | . . 13 . Average 93 | . 118 71 . Maximum Alert Level 1 | . 1 . . Low Security (%) 80 | 100 65 100 . Level 1 19 | . 34 . . Level 2 . | . . . . Level 3 . | . . . . Level 4 . | . . . . Level 5 . | . . . . High Security . | . . . . Max Security . | . . . . Squads Dispatched 1 | . 1 . . Investigation . | . . . . Extermination . | . . . . Reinforcement 1 | . 1 . . Assault . | . . . . Garrison . | . . . . Intercept . | . . . . Searches Triggered . | . . . . Construction Impeded . | . . . . Haulers Reinforced . | . . . . Active Scanning Responses . | . . . . Cargo Convoy Interrupts . | . . . . Stealth | -11 -10 -10 -10 --------- Run | Scr Mat Min Exi Distress Signals . | . . . . Communications Jammed . | . . . . Distress Signals . | . . . . Times Spotted 23 | . 11 7 5 Peak Tracking Total 10 | . 5 4 10 Tactical Retreats 1 | . . . 1 Traps | -11 -10 -10 -10 ------- Run | Scr Mat Min Exi Traps Triggered . | . . . . Indirectly . | . . . . Trap Hack Attempts . | . . . . Triggered . | . . . . Disarmed . | . . . . Reprogrammed . | . . . . Reused . | . . . . Traps Extracted . | . . . . Installed . | . . . . Triggered . | . . . . Exploded 3 | . . . 3 Machines | -11 -10 -10 -10 ---------- Run | Scr Mat Min Exi Machines Disabled 3 | . 1 . 2 Max in Single Turn 1 | . 1 . 1 Machines Sabotaged . | . . . . Garrisons Compromised . | . . . . Overloaded Fab Kills . | . . . . Hacking | -11 -10 -10 -10 --------- Run | Scr Mat Min Exi Machines Accessed 4 | . 2 . 2 Terminals 2 | . 2 . . Fabricators . | . . . . Repair Stations . | . . . . Recycling Units . | . . . . Scanalyzers . | . . . . Garrison Access . | . . . . Total Hacks 5 | . 3 . 2 Successful 2 | . . . 2 Failed 3 | . 3 . . Catastrophic 1 | . 1 . . Database Lockouts . | . . . . Manual 4 | . 3 . 1 Terminals 3 | . 3 . . Fabricators . | . . . . Repair Stations . | . . . . Recycling Units . | . . . . Scanalyzers . | . . . . Garrison Access . | . . . . Terminal Hacks 2 | . . . 2 Record 1 | . . . 1 EX-Prototype ID Bank 1 | . . . 1 Fabricator Hacks . | . . . . Repair Station Hacks . | . . . . Recycling Unit Hacks . | . . . . Scanalyzer . | . . . . Garrison Access Hacks . | . . . . Unauthorized Hacks . | . . . . Terminals . | . . . . Fabricators . | . . . . Repair Stations . | . . . . Recycling Units . | . . . . Scanalyzers . | . . . . Garrison Access . | . . . . Data Cores Recovered . | . . . . Used . | . . . . Hacking Detections 2 | . 2 . . Full Trace Events . | . . . . Feedback Events . | . . . . Feedback Blocked . | . . . . Robot Schematics Acquired . | . . . . Robots Built . | . . . . Authchips . | . . . . Time . | . . . . Total Robot Build Rating . | . . . . Part Schematics Acquired . | . . . . Parts Built . | . . . . Authchips . | . . . . Time . | . . . . Total Part Build Rating . | . . . . Parts Repaired . | . . . . Time . | . . . . Parts Recycled . | . . . . Recycled Matter . | . . . . Retrieved Matter . | . . . . Retrieved Components . | . . . . Parts Scanalyzed . | . . . . Part Schematics Acquired . | . . . . Parts Damaged . | . . . . Bothacking | -11 -10 -10 -10 ------------ Run | Scr Mat Min Exi Used RIF Installer . | . . . . Robots Hacked . | . . . . Non-combat . | . . . . Combat . | . . . . Robot Hacks Applied . | . . . . Relay Couplers Released . | . . . . Fabnet Peak Effective % . | . . . . Robots Rewired . | . . . . Allies Hacked . | . . . . Hacks Repelled . | . . . . Allies | -11 -10 -10 -10 -------- Run | Scr Mat Min Exi Total Allies . | . . . . Largest Group . | . . . . Highest-Rated Group . | . . . . Highest-Rated Ally . | . . . . Total Orders . | . . . . Ally Attacks . | . . . . Total Damage . | . . . . Kills . | . . . . Allies Corrupted . | . . . . Allies Melted . | . . . . Intel | -11 -10 -10 -10 ------- Run | Scr Mat Min Exi Robot Analysis Total . | . . . . Derelict Logs Recovered . | . . . . Drone Launches . | . . . . Drone Recoveries . | . . . . Exploration | -11 -10 -10 -10 ------------- Run | Scr Mat Min Exi Turns Passed 2026 | 57 570 383 1016 Spaces Moved 1097 | 48 329 195 525 Core 2 | 2 . . . Treads 977 | . 257 195 525 Legs . | . . . . Wheels 118 | 46 72 . . Hover . | . . . . Flight . | . . . . Fastest Speed 50 | 50 90 160 160 Average Speed 152 | 88 144 160 160 Slowest Speed 160 | 100 160 160 160 Overloaded Moves . | . . . . Propulsion Burnouts . | . . . . Robots Hopped . | . . . . Cave-ins Triggered . | . . . . Exploration Rate (%) 42 | 3 57 42 69 Regions Visited 3 Branch Regions 2 Pre-discovered Areas 1 | . . . 1 Known Exits Taken . | . . . . Unknown Exits Taken 3 | 1 1 1 . Scrap Searched 1 | . . 1 . Spaces Dug . | . . . . Terrain Destroyed . | . . . . Melee . | . . . . Projectile . | . . . . AOE . | . . . . Terrain Rammed . | . . . . Walls Destroyed . | . . . . Machines Disabled . | . . . . Actions | -11 -10 -10 -10 --------- Run | Scr Mat Min Exi Total 1308 | 59 380 230 639 Wait 54 | 2 5 16 31 Move 1094 | 47 328 194 525 Hop . | . . . . Pick Up 18 | 4 8 . 6 Fast Attach 8 | 6 1 1 . Attach 6 | . . 1 5 Detach . | . . . . Swap 12 | . 9 . 3 Drop 13 | . 7 . 6 Fire 77 | . 22 18 37 Melee . | . . . . Ram . | . . . . Kick . | . . . . Crush 26 | . . . 26 Escape Stasis . | . . . . Rewire . | . . . . Trap . | . . . . Miscellaneous . | . . . . Route ------- -11/Scrapyard -10/Materials (discovered 3 exits: [*Mat x2] / [*Min]) -10/Mines (discovered 2 exits: [*Mat] / *Exi) -10/Exiles (discovered 1 exit: [*Min]) History --------- Turn | Location | Event 6 | -11/Scrapyard | Discovered new exit (range 15) 58 | -11/Scrapyard | Entered Materials 301 | -10/Materials | Discovered new exit (range 16) 315 | -10/Materials | Build established: Mutant 380 | -10/Materials | Discovered new exit (range 16) 488 | -10/Materials | Discovered new exit (range 12) 628 | -10/Materials | Entered Mines 629 | -10/Mines | Assembled infested the area 634 | -10/Mines | Assisted by a Guerilla fighting off Assembled 637 | -10/Mines | Met a Derelict bent on vengeance 768 | -10/Mines | Discovered new exit (range 8) 1005 | -10/Mines | Deemed a non-threat by the Exiles lab entrance 1005 | -10/Mines | Discovered new exit (range 5) 1011 | -10/Mines | Entered Exiles 1050 | -10/Exiles | Met 8R-AWN 1077 | -10/Exiles | Met EX-HEX 1136 | -10/Exiles | Met EX-DEC 1163 | -10/Exiles | Learned location of Zion (-6) 1199 | -10/Exiles | Met EX-BIN 1221 | -10/Exiles | Aligned with FarCom system 1223 | -10/Exiles | Given EX-Vault access code 1264 | -10/Exiles | Opened EX-Vault 1277 | -10/Exiles | Found Field Lobotomy Kit 1313 | -10/Exiles | Warned to stay clear of 0b10 Research branches 1419 | -10/Exiles | Discovered new exit (range 14) 1809 | -10/Exiles | Attacked by the Exiles 1956 | -10/Exiles | Core integrity fell below 50% 2007 | -10/Exiles | Core integrity fell below 20% 2027 | -10/Exiles | Destroyed by 8R-AWN with 8R-AWN's Boregun Last Messages --------------- 02014_ Critical hit (Destroy). 02014_ HV Slug penetrates Wall. 02014_ Penetrated by HV Slug. 02014_ HV Slug penetrates Wall. 02016_ Slammed into 8R-AWN. 02019_ Penetrated by HV Slug. 02019_ Critical hit (Destroy). 02019_ HV Slug penetrates Machine. 02019_ Penetrated by HV Slug. 02019_ Critical hit (Destroy). 02019_ HV Slug penetrates Wall. 02019_ Slammed into 8R-AWN. 02023_ Penetrated by HV Slug. 02023_ HV Slug penetrates Wall. 02023_ Penetrated by HV Slug. 02023_ HV Slug penetrates Wall. 02024_ Slammed into 8R-AWN. 02027_ Penetrated by HV Slug. 02027_ HV Slug penetrates Wall. 02027_ Penetrated by HV Slug. Map ----- +----------------------------------------------------+ | ?????????????????????????????????????????????????? | | ?????????????????????????????????????????????????? | | ?????????????????????????????????????????????????? | | ?????????????????????????????????????????????????? | | ???????####??????????????????????????????????????? | | ??????## #?????????????????????????????????????? | | ??????# ?????????????????????????????????????? | | ??????# < ?????????????????????????????????????? | | ??????# #????????????????????????????????????? | | ??????# ??????????##????????????????????????? | | ??????# ??????????# #???????????????????????? | | ???????# ???????????# #??????????????????????? | | ???????# ##??????????# #?????##??????????????? | | ????????# #???????????#"#####;#??????????????? | | ????????# #######??????#!!! #???????????????? | | ????????# #""##?????# "#???????????????? | | ?????????# | #?????# ! #???????????????? | | ?????????##" ##???## ##???????????##?? | | ?????????#"" ##### ;#??????????? "" | | ?????????#### ##" # #??????????" "" | | ????????????## #"" #"###??????????" | | ?????????????#"## # #???????????"" | | ?????????????####### #;#???????????"" | | ???????????????????### ";###????????? " | | ?????????????########" g ;;;#??????????" " | | ?????????????# !!""""" @ ;#??????????# # | | ?????????????#! "###"" %% ;;;;##???### # | | ?????????????#! "#?##" % "#####X# # | | ?????????????#! ##??#" % % | | ?????????????# """ "###???#"# % | | ?????????????##########?????#### | | ???????????????????????????????#"# | | ???????????????????????????????? ### | | ???????????????????????????????? #?## | | ?????????????????????????????????#??## | | ?????????????????????????????????????##" | | ??????????????????????????????????????#"" | | ?????????????????????????????????????##" | | ?????????????????????????????????????#"" | | ?????????????????????????????????????#""" | | ?????????????????????????????????????""" | | ?????????????????????????????????????""" | | ????????????????????????????????????#"" | | ????????????????????????????????????#""" | | ????????????????????????????????????#"" | | ?????????????????????????????????????#"" | | ?????????????????????????????????????#"""" | | ??????????????????????????????????????# | | ??????????????????????????????????????#" | | ??????????????????????????????????????#"""" | +----------------------------------------------------+ Best States ------------- Heat Dissipation 25 Energy Generation 10 Energy Capacity 250 Matter Stores 300 Matter Capacity 300 Sight Range 16 Terrain Scan Density 10 Armor Coverage 300 Evasion (%) 42 Recoil Reduction 2 Item Schematics ----------------- None Robot Schematics ------------------ None Fabricated ------------ Nothing Alien Tech Used ----------------- None Achievements -------------- None Challenges ------------ None Game ------ Seed AbsorptionMatterPerforator Manual? 0 Play Time 00:12:22 Cumulative 241.0 hours Start 2022.04.22 @ 20:21:23 End 2022.04.22 @ 20:32:15 Sessions 1 Manual Loads 0 Difficulty Rogue Special Mode None Game No. 333 Rogue 246 Adventurer 87 Explorer 0 Win Type - Total 5 Types 3/0/1/1/0/0/0/0/0 Lore% 69 Gallery% 77 Achievement% 67 Wizard Run 0 Options --------- ASCII 0 Keyboard 1 Movement Numpad Keybinds 0 Fullscreen 1 Font 18/Smallcaps Map View 76x50 Tactical HUD 1 Map Filters NONE Filters NONE Steam 1 RUN: af5cde51-df51-4adc-80cf-62ad2db3c91c